lending/lending_fUSD_20240731
["ID","MTS","AMOUNT","RATE_DAILY","PERIOD"]
[333752661,1722450632633,-202.74027919,0.00010247,2]
[333752665,1722450632679,-223.05972081,0.00010247,2]
[333752693,1722450632690,-522.11,0.00010247,2]
[333752697,1722450632973,-221.61,0.00010247,2]
[333752699,1722450632982,-150.0,0.00010247,2]
[333752701,1722450632992,-356.05,0.00010247,2]
[333752703,1722450633001,-171.71,0.00010247,2]
[333752705,1722450633013,-425.8,0.00010247,2]
[333752707,1722450633022,-530.28,0.00010247,2]
[333752709,1722450633031,-150.0,0.00010247,2]
[333752711,1722450633040,-356.05,0.00010247,2]
[333752712,1722450633049,-191.02467919,0.00010247,2]
[333752723,1722450637686,-339.25532081,0.00010247,2]
[333752724,1722450637696,-421.16,0.00010247,2]
[333752725,1722450637707,-150.0,0.00010247,2]
[333752726,1722450637716,-150.0,0.00010247,2]
[333752727,1722450637726,-425.8,0.00010247,2]
[333752728,1722450637735,-425.8,0.00010247,2]
[333752729,1722450637745,-425.8,0.00010278,2]
[333752730,1722450637754,-150.0,0.00010278,2]
[333752731,1722450637767,-356.05,0.00010278,2]
[333752732,1722450637776,-150.0,0.00010278,2]
[333752733,1722450637785,-425.8,0.00010278,2]
[333752734,1722450637795,-530.28,0.000103,2]
[333752735,1722450637804,-356.05,0.000103,2]
[333752736,1722450637812,-150.0,0.000103,2]
[333752737,1722450637824,-420.45,0.000103,2]
[333752738,1722450637833,-425.8,0.00010378,2]
[333752739,1722450637844,-356.05,0.00010378,2]
[333752740,1722450637853,-150.0,0.00010378,2]
[333752741,1722450637863,-383.64,0.00010378,2]
[333752742,1722450637872,-425.8,0.00010378,2]
[333752743,1722450637881,-150.0,0.00010378,2]
[333752744,1722450637890,-356.05,0.00010378,2]
[333752745,1722450637899,-425.8,0.00010378,2]
[333752746,1722450637909,-355.81,0.00010378,2]
[333752747,1722450637918,-150.0,0.00010378,2]
[333752748,1722450637929,-425.8,0.00010378,2]
[333752750,1722450637939,-150.0,0.00010378,2]
[333752752,1722450637948,-1115.55,0.00010465,2]
[333752754,1722450637958,-355.99,0.000105,2]
[333752756,1722450637968,-530.28,0.000105,2]
[333752758,1722450637977,-150.0,0.000105,2]
[333752760,1722450637986,-425.8,0.000105,2]
[333752762,1722450637996,-530.28,0.000105,2]
[333752764,1722450638006,-356.05,0.000105,2]
[333752766,1722450638016,-5252.47256649,0.000105,2]
[333752768,1722450638026,-621.0,0.00010594,2]
[333752770,1722450638035,-1670.0,0.00010594,2]
[333752772,1722450638044,-298.4489127,0.00010594,2]
[333752774,1722450638056,-330.200041,0.00010594,2]
[333752776,1722450638068,-573.3510463,0.00010594,2]
[333752778,1722450638077,-1021.7335,0.00010681,2]
[333752780,1722450638087,-799.3339,0.00010681,2]
[333752782,1722450638096,-91.52536792,0.00010681,2]
[333752786,1722450638130,-203.65043208,0.00010681,2]
[333752788,1722450638140,-1748.93715965,0.00010681,2]
[333752790,1722450638153,-255.3477856,0.00010681,2]
[333752798,1722450638374,-445.0,0.00010594,2]
[333752800,1722450638383,-1355.1,0.00010681,2]
[333752802,1722450638395,-3197.03965475,0.00010681,2]
[333752804,1722450638405,-530.28,0.000107,2]
[333752806,1722450638415,-425.8,0.000107,2]
[333752808,1722450638424,-530.28,0.000107,2]
[333752809,1722450638433,-150.0,0.000107,2]
[333752811,1722450638443,-425.8,0.000107,2]
[333752813,1722450638452,-420.0,0.00010763,2]
[333752815,1722450638462,-500.0,0.0001078,2]
[333752817,1722450638471,-500.0,0.00010789,2]
[333752819,1722450638481,-4575.10709781,0.0001088,2]
[333752821,1722450638491,-3000.0,0.0001089,2]
[333752823,1722450638501,-1000.0,0.00010899,2]
[333752825,1722450638512,-587.48789807,0.00010899,2]
[333752827,1722450638522,-358.69250544,0.00010899,2]
[333752829,1722450638531,-587.48789799,0.00010899,2]
[333752830,1722450638540,-358.6925054,0.00010899,2]
[333752832,1722450638550,-587.48789799,0.00010899,2]
[333752834,1722450638559,-358.6925054,0.00010899,2]
[333752836,1722450638569,-587.48789799,0.00010899,2]
[333752838,1722450638579,-358.6925054,0.00010899,2]
[333752840,1722450638588,-587.48789799,0.00010899,2]
[333752842,1722450638597,-358.6925054,0.00010899,2]
[333752844,1722450638606,-587.48789799,0.00010899,2]
[333752846,1722450638615,-358.6925054,0.00010899,2]
[333752848,1722450638626,-587.48789799,0.00010899,2]
[333752850,1722450638635,-358.6925054,0.00010899,2]
[333752852,1722450638645,-587.48789799,0.000109,2]
[333752854,1722450638654,-358.6925054,0.000109,2]
[333752856,1722450638663,-333.8714,0.000109,2]
[333752858,1722450638673,-587.48789799,0.000109,2]
[333752860,1722450638682,-358.6925054,0.000109,2]
[333752861,1722450638691,-24009.6498,0.000109,2]
[333752863,1722450638700,-490.9518,0.000109,2]
[333752865,1722450638709,-1520.478,0.000109,2]
[333752867,1722450638719,-507.81530894,0.000109,2]
[333752869,1722450638728,-4945.96330784,0.000109,2]
[333752871,1722450638740,-353.77604915,0.000109,2]
[333752873,1722450638752,-835.77,0.000109,2]
[333752876,1722450638766,-1364.49064301,0.000109,2]
[333752878,1722450638775,-587.48789799,0.000109,2]
[333752880,1722450638785,-358.6925054,0.000109,2]
[333752882,1722450638794,-348.0117315,0.000109,2]
[333752884,1722450638803,-358.75688552,0.000109,2]
[333752886,1722450638813,-1000.0,0.000109,2]
[333752887,1722450638823,-6752.07732321,0.000109,2]
[333752889,1722450638832,-442.400861,0.000109,2]
[333752891,1722450638841,-500.0,0.00010912,2]
[333752893,1722450638850,-210.54583248,0.00010947,2]
[333752903,1722450638930,-399.3,8.219e-05,2]
[333752905,1722450638940,-289.45416752,0.00010947,2]
[333752907,1722450638950,-500.0,0.00010956,2]
[333752908,1722450638959,-319.53252089,0.00010965,2]
[333752973,1722450639842,-180.46747911,0.00010965,2]
[333752974,1722450639852,-800.0,0.00010971,2]
[333752975,1722450639862,-500.0,0.00010974,2]
[333752976,1722450639872,-500.0,0.00010982,2]
[333752977,1722450639882,-500.0,0.00010991,2]
[333752978,1722450639891,-7146.0690316,0.00010998,2]
[333752979,1722450639901,-3573.46348929,0.00010998,2]
[333752980,1722450639913,-265.84899545,0.00010998,2]
[333752981,1722450639925,-277.656,0.00010998,2]
[333752982,1722450639936,-336.861378,0.00010998,2]
[333752983,1722450639947,-4459.19256902,0.00010998,2]
[333753003,1722450641920,-901.23644335,0.00010998,2]
[333753005,1722450641931,-660.75,0.00010998,2]
[333753008,1722450641943,-332.7324,0.00010998,2]
[333753013,1722450641982,-8388.10418692,0.00010998,2]
[333753015,1722450641997,-5900.0,0.00010998,2]
[333753017,1722450642010,-3483.37846113,0.00010998,2]
[333753019,1722450642021,-6019.31615374,0.00010998,2]
[333753021,1722450642030,-1992.1300936,0.00010998,2]
[333753023,1722450642040,-18212.0,0.00010999,2]
[333753025,1722450642050,-296.06879222,0.00010999,2]
[333753027,1722450642059,-602.0,0.00011,2]
[333753029,1722450642068,-147166.54874988,0.00011,2]
[333753031,1722450642078,-179856.65494669,0.00011,2]
[333753033,1722450642087,-3426639.94368419,0.00011,2]
[333753133,1722450642951,-450.0,0.0001097,2]
[333753135,1722450642961,-1254.0513,0.00011,2]
[333753144,1722450643042,-360.23999998,0.00011,2]
[333753146,1722450643054,-1141.64064884,0.00011,2]
[333753148,1722450643065,-184970.63627312,0.00011,2]
[333753566,1722450647108,-530.49366899,8.412e-05,2]
[333753568,1722450647118,-150.0,0.0001097,2]
[333753571,1722450647130,-1222.77887142,0.00011,2]
[333753575,1722450647161,-1000.0,0.00011,2]
[333753577,1722450647173,-10570.22792687,0.00011,2]
[333753579,1722450647184,-823.01959517,0.00011,2]
[333753581,1722450647196,-985.97364887,0.00011,2]
[333753584,1722450647207,-3518.81135632,0.00011,2]
[333753591,1722450647279,-431.885,0.00011,2]
[333753594,1722450647291,-283.54805167,0.00011,2]
[333753596,1722450647303,-498.81497389,0.00011,2]
[333753607,1722450647409,-286.68669669,0.00011,2]
[333753610,1722450647421,-3000.0,0.00011,2]
[333754937,1722450834324,183.59,0.0001337,30]
[333754938,1722451050956,170.13,7.78e-05,2]
[333754939,1722451074448,227.57161283,7.78e-05,2]
[333754940,1722451091946,188.0,7.78e-05,2]
[333754941,1722451179437,227.57161283,7.78e-05,2]
[333754942,1722451270451,227.57161283,7.78e-05,2]
[333754943,1722451285493,227.57161283,7.78e-05,2]
[333754944,1722451317853,183.59,0.0001337,30]
[333754946,1722451635301,10149.0,0.00027,120]
[333754968,1722451831827,-1031.09,8.219e-05,2]
[333754972,1722451831836,-165.64,8.219e-05,2]
[333754976,1722451831845,-325.77,9.698e-05,2]
[333754979,1722451831854,-1000.0,9.725e-05,2]
[333754982,1722451831863,-185.57,9.731e-05,2]
[333754985,1722451831873,-1250.0,0.0001,2]
[333754988,1722451831882,-301.54070056,0.00010447,2]
[333754990,1722451831892,-264.76929944,0.00010447,2]
[333754992,1722451831902,-566.31,0.0001045,2]
[333754994,1722451831911,-566.31,0.00010453,2]
[333754996,1722451831921,-566.31,0.00010455,2]
[333754998,1722451831931,-411.63,0.00010457,2]
[333755000,1722451831940,-300.0,0.00010457,2]
[333755001,1722451831950,-566.31,0.00010458,2]
[333755002,1722451831959,-19102.92,0.00010458,2]
[333755003,1722451831968,-566.31,0.00010461,2]
[333755005,1722451831977,-334.15,0.00010461,2]
[333755007,1722451831987,-1031.09,0.00010463,2]
[333755009,1722451831997,-566.31,0.00010463,2]
[333755011,1722451832007,-566.31,0.00010466,2]
[333755013,1722451832020,-566.31,0.00010469,2]
[333755015,1722451832029,-566.31,0.00010472,2]
[333755017,1722451832040,-566.31,0.00010474,2]
[333755019,1722451832049,-10700.02250616,0.00010475,2]
[333755024,1722451832084,-609.67999998,0.00010475,2]
[333755026,1722451832095,-8120.64749386,0.00010475,2]
[333755028,1722451832104,-566.31,0.00010477,2]
[333755030,1722451832114,-566.31,0.0001048,2]
[333755032,1722451832124,-566.31,0.00010483,2]
[333755034,1722451832133,-335.97425614,0.00010485,2]
[333755036,1722451832144,-230.33574386,0.00010485,2]
[333755038,1722451832153,-309.03301908,0.00010488,2]
[333755040,1722451832165,-257.27698092,0.00010488,2]
[333755042,1722451832175,-566.31,0.00010491,2]
[333755044,1722451832184,-566.31,0.00010494,2]
[333755046,1722451832193,-566.31,0.00010496,2]
[333755048,1722451832203,-566.31,0.00010499,2]
[333755050,1722451832212,-663.42448581,0.0001079,2]
[333755052,1722451832223,-1350.34,0.0001079,2]
[333755053,1722451832235,-1618.07633989,0.0001079,2]
[333755055,1722451832247,-16404.8650743,0.0001079,2]
[333755057,1722451832256,-223.5837,0.00010894,2]
[333755059,1722451832265,-1362.4257,0.00010899,2]
[333755061,1722451832275,-2699.2419789,0.00010899,2]
[333755064,1722451832288,-1165.79999,0.00010899,2]
[333755069,1722451832317,-523.015,0.00010899,2]
[333755070,1722451832329,-1058.41894261,0.00010899,2]
[333755072,1722451832340,-792.5901174,0.00010899,2]
[333755073,1722451832352,-340.78735789,0.00010899,2]
[333755075,1722451832364,-2026.1448513,0.00010899,2]
[333755077,1722451832375,-641.5024619,0.00010899,2]
[333755078,1722451832385,-500.0,0.000109,2]
[333755080,1722451832395,-160.44485384,0.000109,2]
[333755082,1722451832404,-174.46635943,0.000109,2]
[333755083,1722451832414,-325.77,0.0001091,2]
[333755085,1722451832423,-500.0,0.00010912,2]
[333755087,1722451832433,-1000.0,0.00010941,2]
[333755088,1722451832442,-500.0,0.00010956,2]
[333755090,1722451832452,-200.0,0.00010959,2]
[333755092,1722451832462,-150.0,0.00010959,2]
[333755094,1722451832471,-3235.78,0.00010959,2]
[333755095,1722451832481,-250.0,0.00010959,2]
[333755097,1722451832491,-500.0,0.00010965,2]
[333755099,1722451832500,-500.0,0.00010974,2]
[333755100,1722451832510,-500.0,0.00010982,2]
[333755101,1722451832519,-1000.0,0.0001099,2]
[333755102,1722451832529,-1000.0,0.0001099,2]
[333755103,1722451832540,-1000.0,0.0001099,2]
[333755104,1722451832549,-1000.0,0.0001099,3]
[333755105,1722451832559,-1000.0,0.0001099,3]
[333755106,1722451832568,-1000.0,0.0001099,2]
[333755107,1722451832578,-153.74,0.0001099,2]
[333755108,1722451832588,-500.0,0.00010991,2]
[333755109,1722451832597,-4380.07663219,0.00010998,2]
[333755110,1722451832609,-542.67878054,0.00010998,2]
[333755111,1722451832641,-463.05,0.00010998,2]
[333755112,1722451832653,-630.10225962,0.00010998,2]
[333755113,1722451832668,-1589.80107295,0.00010998,2]
[333755114,1722451832678,-6282.16002968,0.00010998,2]
[333755115,1722451832689,-2613.10872722,0.00010998,2]
[333755116,1722451832701,-703.37788318,0.00010998,2]
[333755117,1722451832712,-1154.86373683,0.00010998,2]
[333755118,1722451832724,-3636.7873841,0.00010998,2]
[333755119,1722451832761,-9871.13066748,0.00010998,2]
[333755120,1722451832772,-472.53583505,0.00010998,2]
[333755121,1722451832784,-1974.8225,0.00010998,2]
[333755122,1722451832796,-825.99999941,0.00010998,2]
[333755154,1722451838936,-2667.34188517,0.00010998,2]
[333755155,1722451838954,-381.33465368,0.00010998,2]
[333755156,1722451838977,-445.7397565,0.00010998,2]
[333755157,1722451838993,-2811.84819383,0.00010998,2]
[333755158,1722451839012,-2192.4951309,0.00010998,2]
[333755159,1722451839030,-19851.5830375,0.00010998,2]
[333755160,1722451839050,-3653.20987366,0.00010998,2]
[333755161,1722451839067,-994.53623725,0.00010998,2]
[333755162,1722451839087,-1243.82881336,0.00010998,2]
[333755163,1722451839102,-593.0,0.00011,2]
[333755164,1722451839118,-35858.79422227,0.00011,2]
[333755165,1722451839137,-443.81585153,0.00011,2]
[333755166,1722451839154,-30191.49050462,0.00011,2]
[333755167,1722451839174,-674.47,0.00011,2]
[333755168,1722451839193,-1731.09387748,0.00011,2]
[333755169,1722451839211,-21195.61122195,0.00011,2]
[333755170,1722451839231,-322.01451021,0.00011,2]
[333755171,1722451839249,-541.90799385,0.00011,2]
[333755172,1722451839267,-29415.8683817,0.00011,2]
[333755179,1722451840012,-3057.47809138,0.00011,2]
[333755180,1722451840024,-697.22222227,0.00011,2]
[333755196,1722451840557,-1017.6132676,0.000109,2]
[333755198,1722451840566,-282.96435727,0.00011,2]
[333755200,1722451840577,-3291.39065368,0.00011,2]
[333755202,1722451840588,-1225.9364753,0.00011,2]
[333755204,1722451840600,-1548.34307602,0.00011,2]
[333755206,1722451840611,-509.73860691,0.00011,2]
[333755209,1722451840623,-649.02,0.00011,2]
[333755211,1722451840636,-2698.17239316,0.00011,2]
[333755213,1722451840648,-3485.67,0.00011,2]
[333755216,1722451840663,-2430.53542353,0.00011,2]
[333755222,1722451840712,-392.85540526,0.00011,2]
[333755234,1722451840829,-4263.44190686,0.00011,2]
[333755237,1722451840841,-463131.71609677,0.00011,2]
[333755239,1722451840852,-644.10641409,0.00011,2]
[333755249,1722451840948,-891.51412651,0.00011,2]
[333755251,1722451840960,-1396.69046004,0.00011,2]
[333755460,1722451843107,-1968.40098272,0.00011,2]
[333755471,1722451843210,-4758.83315236,0.00011,2]
[333755473,1722451843222,-39068.66689214,0.00011,2]
[333755475,1722451843234,-6642.40000016,0.00011,2]
[333755484,1722451843321,-2425.04959483,0.00011,2]
[333755495,1722451843413,-854.91147656,0.00011,2]
[333755497,1722451843425,-4164.03983182,0.00011,2]
[333755690,1722451846211,-176.96034438,0.000109,2]
[333755691,1722451846221,-435311.60830287,0.00011,2]
[333755694,1722451846542,-109.35613434,0.00011,2]
[333755696,1722451846554,-539.64431596,0.00011,2]
[333755698,1722451846565,-2836.5862804,0.00011,2]
[333755700,1722451846576,-2990.50036596,0.00011,2]
[333755702,1722451846587,-12331.1541488,0.00011,2]
[333755704,1722451846599,-9789.77510328,0.00011,2]
[333755706,1722451846610,-3458.41330043,0.00011,2]
[333755708,1722451846621,-281.00881241,0.00011,2]
[333755710,1722451846632,-3563.53269341,0.00011,2]
[333755715,1722451846792,-1336.73235623,0.00011,2]
[333755716,1722451846803,-612.67,0.00011,2]
[333755717,1722451846815,-1041.17810398,0.00011,2]
[333755718,1722451846849,-361.31539762,0.00011,2]
[333755737,1722452243562,150.0,7.735e-05,2]
[333755738,1722452243584,20.13,7.735e-05,2]
[333755739,1722452266239,150.0,7.816e-05,2]
[333755740,1722452266260,0.96988889,7.816e-05,2]
[333755741,1722452280396,150.0,7.816e-05,2]
[333755742,1722452280422,77.57161283,7.816e-05,2]
[333755743,1722452281044,150.0,7.816e-05,2]
[333755744,1722452281066,150.0,7.816e-05,2]
[333755745,1722452281089,8963.16857934,7.816e-05,2]
[333755747,1722452331471,150.0,7.816e-05,2]
[333755748,1722452331493,150.0,7.816e-05,2]
[333755749,1722452331515,150.0,7.816e-05,2]
[333755750,1722452331540,19924.08569997,7.816e-05,2]
[333755752,1722452338329,150.0,7.816e-05,2]
[333755753,1722452338353,141.34809509,7.816e-05,2]
[333755754,1722452347250,150.0,7.816e-05,2]
[333755755,1722452347272,150.0,7.816e-05,2]
[333755756,1722452347292,150.0,7.816e-05,2]
[333755757,1722452347313,77.63509956,7.816e-05,2]
[333755758,1722452349169,150.0,7.816e-05,2]
[333755759,1722452349191,150.0,7.816e-05,2]
[333755760,1722452349221,150.0,7.816e-05,2]
[333755761,1722452349242,150.0,7.816e-05,2]
[333755762,1722452349264,237.45795033,7.816e-05,2]
[333755763,1722452349289,182958.74298002,7.816e-05,2]
[333755764,1722452361381,9263.16857934,7.816e-05,2]
[333755765,1722452372516,150.0,7.816e-05,2]
[333755766,1722452372553,77.57161283,7.816e-05,2]
[333755767,1722452426072,150.0,7.816e-05,2]
[333755768,1722452426096,9628.63165631,7.816e-05,2]
[333755769,1722452432351,150.0,7.816e-05,2]
[333755770,1722452432372,140.96990863,7.816e-05,2]
[333755772,1722452443183,150.0,7.816e-05,2]
[333755773,1722452443205,150.0,7.816e-05,2]
[333755774,1722452443227,150.0,7.816e-05,2]
[333755775,1722452443248,150.0,7.816e-05,2]
[333755776,1722452443271,183196.20093035,7.816e-05,2]
[333755777,1722452479891,150.0,7.816e-05,2]
[333755778,1722452479912,150.0,7.816e-05,2]
[333755779,1722452479933,150.0,7.816e-05,2]
[333755780,1722452479954,150.0,7.816e-05,2]
[333755781,1722452479975,150.0,7.816e-05,2]
[333755782,1722452479996,150.0,7.816e-05,2]
[333755783,1722452480017,150.0,7.816e-05,2]
[333755784,1722452480038,150.0,7.816e-05,2]
[333755785,1722452480059,150.0,7.816e-05,2]
[333755786,1722452480081,150.0,7.816e-05,2]
[333755787,1722452480103,150.0,7.816e-05,2]
[333755788,1722452480130,150.0,7.816e-05,2]
[333755789,1722452480153,150.0,7.816e-05,2]
[333755790,1722452480175,150.0,7.816e-05,2]
[333755791,1722452480196,150.0,7.816e-05,2]
[333755792,1722452480217,261.77798072,7.816e-05,2]
[333755793,1722452480240,6751.39059862,7.816e-05,2]
[333755794,1722452484995,3007.17,0.00027,120]
[333755795,1722452502628,150.0,7.816e-05,2]
[333755796,1722452502651,77.57161283,7.816e-05,2]
[333755797,1722452583570,150.0,7.816e-05,2]
[333755798,1722452583593,150.0,7.816e-05,2]
[333755799,1722452583615,150.0,7.816e-05,2]
[333755800,1722452583638,150.0,7.816e-05,2]
[333755801,1722452583670,150.0,7.816e-05,2]
[333755802,1722452583692,150.0,7.816e-05,2]
[333755803,1722452583714,150.0,7.816e-05,2]
[333755804,1722452583736,150.0,7.816e-05,2]
[333755805,1722452583760,150.0,7.816e-05,2]
[333755806,1722452583782,222.42838717,7.816e-05,2]
[333755807,1722452583806,2020.68633812,7.816e-05,2]
[333755808,1722452619524,227.57161283,7.816e-05,2]
[333755809,1722452630502,150.0,7.816e-05,2]
[333755810,1722452630523,77.57161283,7.816e-05,2]
[333755811,1722452673934,1692.04539826,7.816e-05,2]
[333755813,1722452731574,227.57161283,7.816e-05,2]
[333755814,1722452824655,227.57161283,7.816e-05,2]
[333755816,1722452924551,150.0,7.816e-05,2]
[333755817,1722452924574,77.57161283,7.816e-05,2]
[333755818,1722452992909,300.0,7.816e-05,2]
[333755833,1722453032064,-986.62,8.219e-05,2]
[333755836,1722453032074,-163.9,8.219e-05,2]
[333755838,1722453032087,-908.33,8.71e-05,2]
[333755840,1722453032097,-1775.33185265,8.71e-05,2]
[333755846,1722453032151,-2121.35814735,8.71e-05,2]
[333755848,1722453032161,-1852.42,8.906e-05,2]
[333755850,1722453032171,-250.0,8.94e-05,2]
[333755852,1722453032181,-944.17,8.94e-05,2]
[333755853,1722453032191,-15116.56902823,8.962e-05,2]
[333755854,1722453032202,-313.57105066,8.962e-05,2]
[333755855,1722453032215,-1692.33923625,8.962e-05,2]
[333755856,1722453032227,-3511.31068486,8.962e-05,2]
[333755857,1722453032238,-21342.4,8.979e-05,2]
[333755858,1722453032248,-150.0,9.041e-05,2]
[333755859,1722453032258,-200.0,9.042e-05,2]
[333755860,1722453032267,-444.57,9.044e-05,2]
[333755861,1722453032278,-195.46,9.072e-05,2]
[333755862,1722453032288,-168.62,9.462e-05,2]
[333755863,1722453032298,-227.57161283,9.474e-05,2]
[333755864,1722453032309,-1200.08295394,9.474e-05,2]
[333755865,1722453032319,-227.57161283,9.474e-05,2]
[333755866,1722453032329,-530.49366899,9.474e-05,2]
[333755867,1722453032339,-53289.69691372,9.474e-05,2]
[333755868,1722453032364,-10130.5353258,9.474e-05,2]
[333755870,1722453032502,-19641.26291122,9.474e-05,2]
[333755871,1722453032514,-49736.66322945,9.474e-05,2]
[333755872,1722453032526,-545.15058203,9.474e-05,2]
[333755873,1722453032551,-439.72970081,9.474e-05,2]
[333755916,1722453038775,-569.8699703,8.94e-05,2]
[333755918,1722453038786,-815.0,8.94e-05,2]
[333755920,1722453038798,-483.66,8.94e-05,2]
[333755965,1722453039361,-48131.4700297,8.94e-05,2]
[333755967,1722453039372,-12445.62729022,9.474e-05,2]
[333755969,1722453039381,-1256.2300716,9.474e-05,2]
[333755971,1722453039391,-499.99,9.67e-05,2]
[333755973,1722453039400,-1135.73,9.67e-05,2]
[333755975,1722453039409,-563.52,9.67e-05,2]
[333755977,1722453039419,-167.42,9.761e-05,2]
[333755979,1722453039428,-156.71,9.799e-05,2]
[333755981,1722453039437,-708.83,9.799e-05,2]
[333755983,1722453039447,-208.8,9.799e-05,2]
[333755985,1722453039456,-156.71,9.806e-05,2]
[333755987,1722453039471,-156.71,9.813e-05,2]
[333755989,1722453039481,-156.71,9.82e-05,2]
[333755991,1722453039490,-156.71,9.827e-05,2]
[333755993,1722453039500,-156.71,9.834e-05,2]
[333755995,1722453039509,-156.71,9.841e-05,2]
[333755997,1722453039518,-156.71,9.848e-05,2]
[333755999,1722453039527,-150.0,9.888e-05,2]
[333756001,1722453039537,-1000.0,9.941e-05,2]
[333756003,1722453039547,-255.0,9.945e-05,2]
[333756005,1722453039556,-1250.0,0.0001,2]
[333756007,1722453039565,-195.46,0.00010207,2]
[333756009,1722453039574,-150.0,0.00010394,2]
[333756010,1722453039584,-530.28,0.00010394,2]
[333756012,1722453039593,-300.0,0.00010394,2]
[333756014,1722453039602,-986.62,0.00010422,2]
[333756016,1722453039613,-259.26709898,0.00010439,2]
[333756018,1722453039623,-886.835,0.00010682,2]
[333756020,1722453039633,-150.0,0.00010682,2]
[333756022,1722453039642,-1994.0,0.00010682,2]
[333756024,1722453039652,-550.0,0.00010682,2]
[333756026,1722453039662,-3283.0,0.00010682,2]
[333756028,1722453039671,-1370.0,0.00010682,2]
[333756030,1722453039681,-150.0,0.00010682,2]
[333756032,1722453039690,-5125.0,0.00010682,2]
[333756034,1722453039700,-150.468,0.00010682,2]
[333756036,1722453039709,-1202.0,0.00010682,2]
[333756038,1722453039721,-5832.0,0.00010682,2]
[333756040,1722453039730,-1074.0,0.00010682,2]
[333756041,1722453039739,-164.80042231,0.0001079,2]
[333756043,1722453039749,-175505.32577775,0.0001089,2]
[333756045,1722453039759,-12407.0,0.0001089,2]
[333756047,1722453039768,-156.71,0.00010892,2]
[333756049,1722453039778,-156.71,0.00010898,2]
[333756051,1722453039789,-2436.74862936,0.00010899,2]
[333756053,1722453039800,-2436.74862928,0.00010899,2]
[333756055,1722453039810,-2436.74862928,0.00010899,2]
[333756057,1722453039820,-2436.74862928,0.00010899,2]
[333756059,1722453039829,-2436.74862928,0.00010899,2]
[333756061,1722453039840,-2436.74862928,0.00010899,2]
[333756063,1722453039851,-2436.74862928,0.00010899,2]
[333756065,1722453039863,-2436.74862928,0.00010899,2]
[333756067,1722453039873,-2436.74862928,0.00010899,2]
[333756069,1722453039883,-5032.7498,0.000109,2]
[333756071,1722453039892,-190.07546064,0.000109,2]
[333756073,1722453039902,-164.8004223,0.000109,2]
[333756075,1722453039911,-7500.0,0.000109,2]
[333756077,1722453039921,-2436.74862928,0.000109,2]
[333756079,1722453039931,-182.42849114,0.000109,2]
[333756081,1722453039942,-198.96306483,0.000109,2]
[333756082,1722453039952,-153.74,0.000109,2]
[333756083,1722453039963,-156.71,0.00010904,2]
[333756084,1722453039972,-156.71,0.0001091,2]
[333756085,1722453039981,-500.0,0.00010912,2]
[333756086,1722453039991,-156.71,0.00010916,2]
[333756087,1722453040000,-156.71,0.00010922,2]
[333756088,1722453040010,-156.71,0.00010928,2]
[333756089,1722453040020,-156.71,0.00010934,2]
[333756090,1722453040036,-156.71,0.0001094,2]
[333756091,1722453040046,-156.71,0.00010946,2]
[333756092,1722453040056,-200.0,0.00010959,2]
[333756093,1722453040067,-250.0,0.00010959,2]
[333756094,1722453040077,-150.0,0.00010959,2]
[333756095,1722453040086,-167.42,0.00010982,2]
[333756096,1722453040095,-153.74,0.0001099,2]
[333756097,1722453040107,-153.74,0.0001099,2]
[333756098,1722453040116,-153.74,0.0001099,2]
[333756099,1722453040127,-153.74,0.0001099,2]
[333756100,1722453040137,-153.74,0.0001099,2]
[333756101,1722453040148,-153.74,0.0001099,2]
[333756102,1722453040158,-153.74,0.0001099,2]
[333756103,1722453040168,-153.74,0.0001099,2]